[Event "2026 Biel Blitz Open"]
[Site "Biel, CH"]
[Date "2026.07.19"]
[Round "8"]
[White "Haugner, Jan"]
[Black "Maruntis, Patrik-Robert"]
[Result "1-0"]
[Board "20"]
[TimeControl "180+2"]
[WhiteFideId "24655244"]
[BlackFideId "1259997"]
[WhiteElo "1976"]
[BlackElo "2167"]
[WhiteClock "0:01:04"]
[BlackClock "0:00:04"]
[Variant "Standard"]
[EndDate "2026.07.19"]
[EndTime "14:16:53"]

1. e4 {[%clk 0:03:02]}  d6 {[%clk 0:03:01]} 2. d4 {[%clk 0:03:03]}  Nf6 {[%clk 0:03:02]} 3. Nc3 {[%clk 0:03:04]}  e5 {[%clk 0:03:03]}
4. Nge2 {[%clk 0:03:03]}  Be7 {[%clk 0:02:55]} 5. h3 {[%clk 0:03:04]}  O-O {[%clk 0:02:33]} 6. g4 {[%clk 0:03:04]}  exd4 {[%clk 0:02:33]}
7. Nxd4 {[%clk 0:02:56]}  Re8 {[%clk 0:01:58]} 8. Be3 {[%clk 0:02:45]}  Bf8 {[%clk 0:01:57]} 9. Bg2 {[%clk 0:02:44]}  Nc6 {[%clk 0:00:23]}
10. Qf3 {[%clk 0:02:39]}  Nxd4 {[%clk 0:00:21]} 11. Bxd4 {[%clk 0:02:40]}  Nxe4 {[%clk 0:00:19]} 12. Nxe4 {[%clk 0:02:40]}  d5 {[%clk 0:00:20]}
13. O-O-O {[%clk 0:02:36]}  dxe4 {[%clk 0:00:20]} 14. Qc3 {[%clk 0:02:12]}  Bd6 {[%clk 0:00:13]} 15. Rhe1 {[%clk 0:02:03]}  f5 {[%clk 0:00:07]}
16. f3 {[%clk 0:01:46]}  Qg5+ {[%clk 0:00:05]} 17. Kb1 {[%clk 0:01:46]}  Be6 {[%clk 0:00:04]} 18. fxe4 {[%clk 0:01:29]}  fxg4 {[%clk 0:00:05]}
19. hxg4 {[%clk 0:01:29]}  Qxg4 {[%clk 0:00:05]} 20. Bf3 {[%clk 0:01:21]}  Qf4 {[%clk 0:00:04]} 21. Bxg7 {[%clk 0:01:12]}  Bb4 {[%clk 0:00:04]}
22. Qxb4 {[%clk 0:01:08]}  Kxg7 {[%clk 0:00:05]} 23. Qc3+ {[%clk 0:01:04]}  Kf8 {[%clk 0:00:04]} 24. Rf1 {[%clk 0:01:04]}  Kg8 {[%clk 0:00:04]}
25. Rg1+ {[%clk 0:01:04]}  Bg4 {[%clk 0:00:04]} 26. Rxg4+ {[%clk 0:01:04]} 1-0

[Event "2026 Biel Blitz Open"]
[Site "Biel, CH"]
[Date "2026.07.19"]
[Round "8"]
[White "Hakimifard, Ghazal"]
[Black "Osmani, Xhevdet"]
[Result "1-0"]
[Board "21"]
[TimeControl "180+2"]
[WhiteFideId "12506540"]
[BlackFideId "22104569"]
[WhiteElo "2130"]
[BlackElo "1959"]
[WhiteTitle "WGM"]
[WhiteClock "0:01:18"]
[BlackClock "0:00:08"]
[Variant "Standard"]
[EndDate "2026.07.19"]
[EndTime "14:20:59"]

1. e4 {[%clk 0:03:02]}  c6 {[%clk 0:03:04]} 2. d4 {[%clk 0:03:03]}  d5 {[%clk 0:03:05]} 3. Nd2 {[%clk 0:03:04]}  dxe4 {[%clk 0:03:05]}
4. Nxe4 {[%clk 0:03:05]}  e6 {[%clk 0:03:06]} 5. Nf3 {[%clk 0:03:04]}  Be7 {[%clk 0:03:07]} 6. c3 {[%clk 0:03:00]}  Nf6 {[%clk 0:03:08]}
7. Bd3 {[%clk 0:02:50]}  b6 {[%clk 0:03:08]} 8. Qe2 {[%clk 0:02:46]}  Bb7 {[%clk 0:03:08]} 9. Ng3 {[%clk 0:02:42]}  O-O {[%clk 0:03:06]}
10. O-O {[%clk 0:02:42]}  Nbd7 {[%clk 0:03:07]} 11. Bg5 {[%clk 0:02:31]}  Rc8 {[%clk 0:03:07]} 12. Rad1 {[%clk 0:02:25]}  Re8 {[%clk 0:03:06]}
13. Ne5 {[%clk 0:02:20]}  Qc7 {[%clk 0:03:01]} 14. Rfe1 {[%clk 0:02:19]}  Nxe5 {[%clk 0:02:56]} 15. dxe5 {[%clk 0:02:19]}  Nd5 {[%clk 0:02:53]}
16. Qh5 {[%clk 0:02:07]}  g6 {[%clk 0:02:51]} 17. Qh6 {[%clk 0:02:03]}  Bxg5 {[%clk 0:02:49]} 18. Qxg5 {[%clk 0:02:04]}  Qe7 {[%clk 0:02:50]}
19. Qh6 {[%clk 0:02:02]}  f6 {[%clk 0:02:36]} 20. h4 {[%clk 0:01:42]}  f5 {[%clk 0:02:22]} 21. a3 {[%clk 0:01:37]}  Qg7 {[%clk 0:02:22]}
22. Qg5 {[%clk 0:01:35]}  h6 {[%clk 0:02:21]} 23. Qc1 {[%clk 0:01:34]}  Rcd8 {[%clk 0:02:22]} 24. c4 {[%clk 0:01:13]}  Ne7 {[%clk 0:02:20]}
25. Qf4 {[%clk 0:01:06]}  c5 {[%clk 0:02:13]} 26. Bc2 {[%clk 0:01:04]}  Nc6 {[%clk 0:02:10]} 27. Ba4 {[%clk 0:01:04]}  Kh7 {[%clk 0:02:03]}
28. b4 {[%clk 0:00:37]}  Rxd1 {[%clk 0:01:53]} 29. Rxd1 {[%clk 0:00:38]}  Rd8 {[%clk 0:01:53]} 30. Rd6 {[%clk 0:00:32]}  Rxd6 {[%clk 0:01:49]}
31. exd6 {[%clk 0:00:33]}  e5 {[%clk 0:01:41]} 32. Qd2 {[%clk 0:00:33]}  Nd4 {[%clk 0:01:34]} 33. bxc5 {[%clk 0:00:23]}  bxc5 {[%clk 0:01:35]}
34. Qa5 {[%clk 0:00:24]}  f4 {[%clk 0:01:22]} 35. Nf1 {[%clk 0:00:18]}  Ne6 {[%clk 0:00:59]} 36. Qxa7 {[%clk 0:00:16]}  Nd8 {[%clk 0:00:54]}
37. Qb6 {[%clk 0:00:18]}  Qf6 {[%clk 0:00:51]} 38. Qc7+ {[%clk 0:00:19]}  Kh8 {[%clk 0:00:48]} 39. Qe7 {[%clk 0:01:18]}  Qg7 {[%clk 0:00:08]}
40. Qxd8+ {[%clk 0:01:18]} 1-0

[Event "2026 Biel Blitz Open"]
[Site "Biel, CH"]
[Date "2026.07.19"]
[Round "8"]
[White "Jehnichen, Kai"]
[Black "Omar, Noaman"]
[Result "0-1"]
[Board "23"]
[TimeControl "180+2"]
[WhiteFideId "24684333"]
[BlackFideId "9300244"]
[WhiteElo "1952"]
[BlackElo "2274"]
[BlackTitle "IM"]
[WhiteClock "0:00:08"]
[BlackClock "0:00:30"]
[Variant "Standard"]
[EndDate "2026.07.19"]
[EndTime "14:17:50"]

1. e4 {[%clk 0:03:02]}  c6 {[%clk 0:03:04]} 2. Nc3 {[%clk 0:03:02]}  d5 {[%clk 0:03:05]} 3. Nf3 {[%clk 0:03:01]}  Bg4 {[%clk 0:03:05]}
4. h3 {[%clk 0:03:03]}  Bh5 {[%clk 0:03:06]} 5. Be2 {[%clk 0:02:56]}  e6 {[%clk 0:03:04]} 6. O-O {[%clk 0:02:55]}  Nf6 {[%clk 0:03:04]}
7. exd5 {[%clk 0:02:43]}  cxd5 {[%clk 0:03:04]} 8. Re1 {[%clk 0:02:43]}  Nc6 {[%clk 0:03:04]} 9. Bb5 {[%clk 0:02:43]}  Bd6 {[%clk 0:02:57]}
10. g4 {[%clk 0:02:42]}  Bg6 {[%clk 0:02:54]} 11. Ne5 {[%clk 0:02:28]}  O-O {[%clk 0:02:27]} 12. Nxg6 {[%clk 0:02:21]}  hxg6 {[%clk 0:02:24]}
13. d4 {[%clk 0:02:20]}  Qb6 {[%clk 0:02:17]} 14. g5 {[%clk 0:01:47]}  Nh5 {[%clk 0:01:57]} 15. Be2 {[%clk 0:01:41]}  Nf4 {[%clk 0:01:48]}
16. Be3 {[%clk 0:01:19]}  Nxh3+ {[%clk 0:01:26]} 17. Kf1 {[%clk 0:01:18]}  Nf4 {[%clk 0:01:27]} 18. Nb5 {[%clk 0:01:12]}  Bb8 {[%clk 0:01:25]}
19. Bg4 {[%clk 0:01:09]}  Qxb5+ {[%clk 0:01:15]} 20. Kg1 {[%clk 0:01:04]}  Qb4 {[%clk 0:01:07]} 21. Qf3 {[%clk 0:00:59]}  e5 {[%clk 0:00:53]}
22. c3 {[%clk 0:01:00]}  Qxb2 {[%clk 0:00:52]} 23. Rac1 {[%clk 0:00:52]}  exd4 {[%clk 0:00:47]} 24. Bxf4 {[%clk 0:00:49]}  Bxf4 {[%clk 0:00:44]}
25. Qxf4 {[%clk 0:00:49]}  dxc3 {[%clk 0:00:43]} 26. Kg2 {[%clk 0:00:47]}  Rfe8 {[%clk 0:00:39]} 27. Re4 {[%clk 0:00:48]}  Rxe4 {[%clk 0:00:37]}
28. Qg3 {[%clk 0:00:13]}  Ne5 {[%clk 0:00:33]} 29. Bc8 {[%clk 0:00:08]}  Rxc8 {[%clk 0:00:30]} 30. Rh1 {[%clk 0:00:08]}  Rg4 {[%clk 0:00:30]} 0-1

[Event "2026 Biel Blitz Open"]
[Site "Biel, CH"]
[Date "2026.07.19"]
[Round "8"]
[White "Gluckman, David"]
[Black "Garcia, Miguel"]
[Result "1-0"]
[Board "24"]
[TimeControl "180+2"]
[WhiteFideId "14300010"]
[BlackFideId "1317431"]
[WhiteElo "2240"]
[BlackElo "1938"]
[WhiteTitle "IM"]
[WhiteClock "0:00:40"]
[BlackClock "0:01:17"]
[Variant "Standard"]
[EndDate "2026.07.19"]
[EndTime "14:24:46"]

1. Nf3 {[%clk 0:03:03]}  Nf6 {[%clk 0:03:02]} 2. c4 {[%clk 0:03:04]}  g6 {[%clk 0:03:03]} 3. g3 {[%clk 0:03:05]}  Bg7 {[%clk 0:03:04]}
4. Bg2 {[%clk 0:03:06]}  O-O {[%clk 0:03:04]} 5. O-O {[%clk 0:03:06]}  d6 {[%clk 0:03:02]} 6. d4 {[%clk 0:03:06]}  c6 {[%clk 0:03:02]}
7. Nc3 {[%clk 0:03:06]}  Qc7 {[%clk 0:03:03]} 8. h3 {[%clk 0:02:59]}  Nbd7 {[%clk 0:03:01]} 9. e4 {[%clk 0:03:00]}  e5 {[%clk 0:03:02]}
10. Re1 {[%clk 0:02:58]}  Re8 {[%clk 0:03:02]} 11. Rb1 {[%clk 0:02:55]}  a6 {[%clk 0:03:01]} 12. Be3 {[%clk 0:02:47]}  Nf8 {[%clk 0:02:40]}
13. c5 {[%clk 0:02:20]}  exd4 {[%clk 0:02:36]} 14. cxd6 {[%clk 0:02:20]}  Qxd6 {[%clk 0:02:36]} 15. e5 {[%clk 0:02:12]}  Qc7 {[%clk 0:01:58]}
16. exf6 {[%clk 0:02:02]}  dxe3 {[%clk 0:01:56]} 17. fxg7 {[%clk 0:02:02]}  exf2+ {[%clk 0:01:56]} 18. Kxf2 {[%clk 0:02:03]}  Kxg7 {[%clk 0:01:54]}
19. Rxe8 {[%clk 0:02:00]}  Ne6 {[%clk 0:01:50]} 20. Qe2 {[%clk 0:01:52]}  Qd7 {[%clk 0:01:45]} 21. Qe5+ {[%clk 0:01:48]}  f6 {[%clk 0:01:46]}
22. Qxe6 {[%clk 0:01:48]}  Qxe6 {[%clk 0:01:47]} 23. Rxe6 {[%clk 0:01:49]}  Bxe6 {[%clk 0:01:48]} 24. Re1 {[%clk 0:01:45]}  Kf7 {[%clk 0:01:47]}
25. Nd4 {[%clk 0:01:43]}  Bc4 {[%clk 0:01:47]} 26. b3 {[%clk 0:01:41]}  Rd8 {[%clk 0:01:40]} 27. Nxc6 {[%clk 0:01:32]}  Rd2+ {[%clk 0:01:39]}
28. Kg1 {[%clk 0:01:32]}  Bd3 {[%clk 0:01:09]} 29. Nd8+ {[%clk 0:01:29]}  Kf8 {[%clk 0:01:08]} 30. Nxb7 {[%clk 0:01:28]}  f5 {[%clk 0:01:03]}
31. Nd5 {[%clk 0:01:23]}  Rxa2 {[%clk 0:01:00]} 32. Nc5 {[%clk 0:01:23]}  Bb5 {[%clk 0:00:57]} 33. Ne6+ {[%clk 0:01:20]}  Kf7 {[%clk 0:00:55]}
34. Ng5+ {[%clk 0:01:21]}  Kg7 {[%clk 0:00:55]} 35. Re7+ {[%clk 0:01:16]}  Kh6 {[%clk 0:00:54]} 36. h4 {[%clk 0:01:17]}  Kh5 {[%clk 0:00:40]}
37. Bf3+ {[%clk 0:01:17]} 1-0

[Event "2026 Biel Blitz Open"]
[Site "Biel, CH"]
[Date "2026.07.19"]
[Round "8"]
[White "Alexakis, Dimitrios"]
[Black "Liu, Bei"]
[Result "0-1"]
[Board "25"]
[TimeControl "180+2"]
[WhiteFideId "4200527"]
[BlackFideId "8603596"]
[WhiteElo "1895"]
[BlackElo "2170"]
[WhiteClock "0:00:03"]
[BlackClock "0:00:33"]
[Variant "Standard"]
[EndDate "2026.07.19"]
[EndTime "14:23:23"]

1. e4 {[%clk 0:03:01]}  c5 {[%clk 0:03:04]} 2. Nf3 {[%clk 0:03:00]}  d6 {[%clk 0:03:05]} 3. d4 {[%clk 0:03:01]}  cxd4 {[%clk 0:03:07]}
4. Nxd4 {[%clk 0:03:01]}  Nf6 {[%clk 0:03:08]} 5. Nc3 {[%clk 0:03:02]}  a6 {[%clk 0:03:09]} 6. Bg5 {[%clk 0:03:02]}  Nbd7 {[%clk 0:03:10]}
7. Qd2 {[%clk 0:02:58]}  e6 {[%clk 0:03:08]} 8. f4 {[%clk 0:02:54]}  h6 {[%clk 0:03:09]} 9. Bh4 {[%clk 0:02:54]}  Nxe4 {[%clk 0:03:08]}
10. Nxe4 {[%clk 0:02:45]}  Qxh4+ {[%clk 0:03:08]} 11. g3 {[%clk 0:02:46]}  Qd8 {[%clk 0:03:08]} 12. O-O-O {[%clk 0:02:45]}  d5 {[%clk 0:02:54]}
13. Nc3 {[%clk 0:02:37]}  Bb4 {[%clk 0:02:53]} 14. a3 {[%clk 0:02:31]}  Ba5 {[%clk 0:02:50]} 15. Qe3 {[%clk 0:02:23]}  O-O {[%clk 0:02:42]}
16. g4 {[%clk 0:02:10]}  Nf6 {[%clk 0:02:08]} 17. Bg2 {[%clk 0:02:01]}  Nxg4 {[%clk 0:02:00]} 18. Qg3 {[%clk 0:01:59]}  Bxc3 {[%clk 0:02:01]}
19. bxc3 {[%clk 0:01:53]}  Nf6 {[%clk 0:01:24]} 20. Rhg1 {[%clk 0:01:55]}  Kh8 {[%clk 0:01:25]} 21. Bf3 {[%clk 0:01:43]}  Rg8 {[%clk 0:01:23]}
22. Rde1 {[%clk 0:01:20]}  Bd7 {[%clk 0:01:20]} 23. Bh1 {[%clk 0:00:52]}  Rc8 {[%clk 0:01:20]} 24. Re3 {[%clk 0:00:35]}  Qc7 {[%clk 0:01:02]}
25. Nf3 {[%clk 0:00:33]}  Nh5 {[%clk 0:00:55]} 26. Qg4 {[%clk 0:00:09]}  Qxf4 {[%clk 0:00:53]} 27. Qxf4 {[%clk 0:00:10]}  Nxf4 {[%clk 0:00:54]}
28. Ne5 {[%clk 0:00:11]}  Be8 {[%clk 0:00:55]} 29. Rf1 {[%clk 0:00:09]}  g5 {[%clk 0:00:56]} 30. h4 {[%clk 0:00:09]}  f6 {[%clk 0:00:54]}
31. Nd3 {[%clk 0:00:04]}  Bb5 {[%clk 0:00:47]} 32. hxg5 {[%clk 0:00:03]}  hxg5 {[%clk 0:00:33]} 33. Nxf4 {[%clk 0:00:00]}  Bxf1 {[%clk 0:00:33]} 0-1

[Event "2026 Biel Blitz Open"]
[Site "Biel, CH"]
[Date "2026.07.19"]
[Round "8"]
[White "Kelecevic, Nedeljko"]
[Black "Havolli, Daut"]
[Result "0-1"]
[Board "26"]
[TimeControl "180+2"]
[WhiteFideId "14400537"]
[BlackFideId "1315200"]
[WhiteElo "2150"]
[BlackElo "1950"]
[WhiteTitle "IM"]
[WhiteClock "0:03:02"]
[BlackClock "0:00:32"]
[Variant "Standard"]
[EndDate "2026.07.19"]
[EndTime "14:23:27"]

1. d4 {[%clk 0:03:01]}  c6 {[%clk 0:03:03]} 2. c4 {[%clk 0:03:01]}  d5 {[%clk 0:03:05]} 3. Nf3 {[%clk 0:03:01]}  dxc4 {[%clk 0:03:05]}
4. a4 {[%clk 0:03:00]}  e6 {[%clk 0:03:04]} 5. e4 {[%clk 0:02:49]}  Bb4+ {[%clk 0:03:04]} 6. Bd2 {[%clk 0:02:49]}  Qa5 {[%clk 0:02:58]}
7. Bxc4 {[%clk 0:02:46]}  Nf6 {[%clk 0:02:59]} 8. Nc3 {[%clk 0:02:33]}  O-O {[%clk 0:02:52]} 9. O-O {[%clk 0:02:33]}  Nbd7 {[%clk 0:02:44]}
10. e5 {[%clk 0:02:28]}  Nd5 {[%clk 0:02:43]} 11. Nxd5 {[%clk 0:02:27]}  cxd5 {[%clk 0:02:42]} 12. Bd3 {[%clk 0:02:23]}  f5 {[%clk 0:02:39]}
13. exf6 {[%clk 0:02:19]}  Nxf6 {[%clk 0:02:40]} 14. Bf4 {[%clk 0:01:57]}  Ne4 {[%clk 0:02:11]} 15. Be5 {[%clk 0:01:55]}  Nf6 {[%clk 0:02:07]}
16. Qe2 {[%clk 0:01:41]}  Qd8 {[%clk 0:02:03]} 17. Ng5 {[%clk 0:01:36]}  h6 {[%clk 0:01:55]} 18. Bxf6 {[%clk 0:01:30]}  Rxf6 {[%clk 0:01:31]}
19. Nf3 {[%clk 0:01:28]}  Bd6 {[%clk 0:01:29]} 20. Rac1 {[%clk 0:01:20]}  Bd7 {[%clk 0:01:29]} 21. Bb1 {[%clk 0:01:21]}  Rc8 {[%clk 0:01:22]}
22. Ne5 {[%clk 0:01:14]}  Bxe5 {[%clk 0:01:14]} 23. dxe5 {[%clk 0:01:15]}  Rf8 {[%clk 0:01:05]} 24. Qd3 {[%clk 0:01:07]}  Qg5 {[%clk 0:01:04]}
25. Rxc8 {[%clk 0:00:57]}  Rxc8 {[%clk 0:01:06]} 26. Qh7+ {[%clk 0:00:57]}  Kf7 {[%clk 0:01:05]} 27. f4 {[%clk 0:00:57]}  Qh5 {[%clk 0:00:55]}
28. f5 {[%clk 0:00:41]}  Qg5 {[%clk 0:00:37]} 29. fxe6+ {[%clk 0:00:34]}  Kxe6 {[%clk 0:00:38]} 30. Qd3 {[%clk 0:00:28]}  Rc1 {[%clk 0:00:36]}
31. h3 {[%clk 0:00:12]}  Rxf1+ {[%clk 0:00:36]} 32. Qxf1 {[%clk 0:00:11]}  Qxe5 {[%clk 0:00:35]} 33. Bd3 {[%clk 0:00:07]}  Bc6 {[%clk 0:00:35]}
34. b4 {[%clk 0:00:06]}  g5 {[%clk 0:00:32]} 35. Qd1 {[%clk 0:00:00]}  d4 {[%clk 0:00:25]} 36. Kh1 {[%clk 0:03:02]}  Qg3 {[%clk 0:00:32]} 0-1

[Event "2026 Biel Blitz Open"]
[Site "Biel, CH"]
[Date "2026.07.19"]
[Round "8"]
[White "Gireada, Daniel"]
[Black "Lupei, Denis"]
[Result "1-0"]
[Board "27"]
[TimeControl "180+2"]
[WhiteFideId "1206451"]
[BlackFideId "34611231"]
[WhiteElo "2148"]
[BlackElo "1890"]
[WhiteClock "0:01:29"]
[BlackClock "0:01:21"]
[Variant "Standard"]
[EndDate "2026.07.19"]
[EndTime "14:18:20"]

1. d4 {[%clk 0:03:02]}  Nf6 {[%clk 0:03:03]} 2. c4 {[%clk 0:03:03]}  e6 {[%clk 0:03:05]} 3. Nf3 {[%clk 0:03:02]}  b6 {[%clk 0:03:06]}
4. d5 {[%clk 0:02:55]}  Bb7 {[%clk 0:02:58]} 5. Nc3 {[%clk 0:02:52]}  Be7 {[%clk 0:02:54]} 6. e4 {[%clk 0:02:50]}  O-O {[%clk 0:02:53]}
7. e5 {[%clk 0:02:47]}  Ne8 {[%clk 0:02:53]} 8. a3 {[%clk 0:02:31]}  a5 {[%clk 0:02:46]} 9. Bd3 {[%clk 0:02:31]}  Na6 {[%clk 0:02:41]}
10. O-O {[%clk 0:02:27]}  Nc5 {[%clk 0:02:40]} 11. Bc2 {[%clk 0:02:27]}  d6 {[%clk 0:02:38]} 12. Be3 {[%clk 0:02:21]}  dxe5 {[%clk 0:02:37]}
13. Nxe5 {[%clk 0:02:19]}  exd5 {[%clk 0:02:32]} 14. Nxd5 {[%clk 0:02:12]}  Bd6 {[%clk 0:02:28]} 15. Bf4 {[%clk 0:01:56]}  Nf6 {[%clk 0:02:20]}
16. Re1 {[%clk 0:01:38]}  Nxd5 {[%clk 0:02:13]} 17. cxd5 {[%clk 0:01:39]}  f6 {[%clk 0:02:06]} 18. Qh5 {[%clk 0:01:35]}  h6 {[%clk 0:01:27]}
19. Bxh6 {[%clk 0:01:33]}  fxe5 {[%clk 0:01:21]} 20. Bxg7 {[%clk 0:01:29]}  Kxg7 {[%clk 0:01:21]} 21. Qg6+ {[%clk 0:01:29]} 1-0

[Event "2026 Biel Blitz Open"]
[Site "Biel, CH"]
[Date "2026.07.19"]
[Round "8"]
[White "Ragavan, Samarth Rajesh"]
[Black "Leuthold, Cyrill"]
[Result "1-0"]
[Board "28"]
[TimeControl "180+2"]
[WhiteFideId "39918106"]
[BlackFideId "1333011"]
[WhiteElo "2101"]
[BlackElo "1887"]
[WhiteClock "0:02:28"]
[BlackClock "0:00:05"]
[Variant "Standard"]
[EndDate "2026.07.19"]
[EndTime "14:18:23"]

1. d4 {[%clk 0:03:04]}  e6 {[%clk 0:03:02]} 2. c4 {[%clk 0:03:05]}  b6 {[%clk 0:03:02]} 3. Nf3 {[%clk 0:03:06]}  Bb7 {[%clk 0:03:02]}
4. g3 {[%clk 0:03:07]}  Bb4+ {[%clk 0:03:02]} 5. Bd2 {[%clk 0:03:08]}  Bxf3 {[%clk 0:03:00]} 6. exf3 {[%clk 0:03:08]}  Bxd2+ {[%clk 0:03:00]}
7. Nxd2 {[%clk 0:03:09]}  Ne7 {[%clk 0:02:55]} 8. Bg2 {[%clk 0:03:10]}  Nbc6 {[%clk 0:02:49]} 9. Nb3 {[%clk 0:03:11]}  d5 {[%clk 0:02:33]}
10. cxd5 {[%clk 0:03:12]}  Nxd5 {[%clk 0:02:24]} 11. O-O {[%clk 0:03:13]}  O-O {[%clk 0:02:21]} 12. Rc1 {[%clk 0:03:13]}  Nce7 {[%clk 0:02:18]}
13. f4 {[%clk 0:03:10]}  Qd7 {[%clk 0:02:08]} 14. Qc2 {[%clk 0:03:07]}  Rac8 {[%clk 0:01:59]} 15. Rfd1 {[%clk 0:03:06]}  c6 {[%clk 0:01:53]}
16. a3 {[%clk 0:03:06]}  Rfd8 {[%clk 0:01:51]} 17. Nd2 {[%clk 0:02:59]}  c5 {[%clk 0:01:44]} 18. dxc5 {[%clk 0:02:58]}  Rxc5 {[%clk 0:01:42]}
19. Qd3 {[%clk 0:02:42]}  Rdc8 {[%clk 0:01:16]} 20. Rxc5 {[%clk 0:02:41]}  Rxc5 {[%clk 0:01:11]} 21. Ne4 {[%clk 0:02:40]}  Rc7 {[%clk 0:01:09]}
22. Nc3 {[%clk 0:02:38]}  Rc5 {[%clk 0:00:31]} 23. b4 {[%clk 0:02:35]}  Rc8 {[%clk 0:00:15]} 24. Nxd5 {[%clk 0:02:34]}  Nxd5 {[%clk 0:00:05]}
25. Bxd5 {[%clk 0:02:27]}  exd5 {[%clk 0:00:05]} 26. Qxd5 {[%clk 0:02:28]}  Qc6 {[%clk 0:00:05]} 1-0

[Event "2026 Biel Blitz Open"]
[Site "Biel, CH"]
[Date "2026.07.19"]
[Round "8"]
[White "King, Alexander"]
[Black "Langner, Robin"]
[Result "1-0"]
[Board "29"]
[TimeControl "180+2"]
[WhiteFideId "1352334"]
[BlackFideId "34606190"]
[WhiteElo "1854"]
[BlackElo "2059"]
[WhiteClock "0:00:09"]
[BlackClock "0:01:15"]
[Variant "Standard"]
[EndDate "2026.07.19"]
[EndTime "14:23:06"]

1. d4 {[%clk 0:03:03]}  Nf6 {[%clk 0:03:04]} 2. c4 {[%clk 0:03:04]}  g6 {[%clk 0:03:05]} 3. Nc3 {[%clk 0:03:05]}  d5 {[%clk 0:03:06]}
4. cxd5 {[%clk 0:03:05]}  Nxd5 {[%clk 0:03:07]} 5. e4 {[%clk 0:03:06]}  Nxc3 {[%clk 0:03:08]} 6. bxc3 {[%clk 0:03:07]}  Bg7 {[%clk 0:03:09]}
7. Bc4 {[%clk 0:03:07]}  c5 {[%clk 0:03:10]} 8. Ne2 {[%clk 0:03:07]}  Nc6 {[%clk 0:03:11]} 9. Be3 {[%clk 0:03:05]}  O-O {[%clk 0:03:10]}
10. O-O {[%clk 0:03:04]}  b6 {[%clk 0:03:11]} 11. Bd5 {[%clk 0:02:32]}  Bb7 {[%clk 0:03:08]} 12. Bxc6 {[%clk 0:02:23]}  Bxc6 {[%clk 0:03:09]}
13. f3 {[%clk 0:02:10]}  e6 {[%clk 0:03:07]} 14. dxc5 {[%clk 0:01:52]}  Qc7 {[%clk 0:03:07]} 15. cxb6 {[%clk 0:01:47]}  axb6 {[%clk 0:03:08]}
16. Qb3 {[%clk 0:01:45]}  Ra6 {[%clk 0:02:46]} 17. Bd4 {[%clk 0:01:19]}  e5 {[%clk 0:02:47]} 18. Be3 {[%clk 0:01:11]}  Rfa8 {[%clk 0:02:43]}
19. Rfb1 {[%clk 0:01:10]}  b5 {[%clk 0:02:42]} 20. c4 {[%clk 0:00:59]}  Ra3 {[%clk 0:02:43]} 21. Qc2 {[%clk 0:00:32]}  Rxe3 {[%clk 0:02:03]}
22. cxb5 {[%clk 0:00:32]}  Qa7 {[%clk 0:02:02]} 23. Qxc6 {[%clk 0:00:10]}  Rxe2+ {[%clk 0:01:45]} 24. b6 {[%clk 0:00:11]}  Qa3 {[%clk 0:01:21]}
25. b7 {[%clk 0:00:04]}  Qe3+ {[%clk 0:01:19]} 26. Kh1 {[%clk 0:00:04]}  Rb8 {[%clk 0:01:13]} 27. Qc8+ {[%clk 0:00:05]}  Bf8 {[%clk 0:01:14]}
28. Qxb8 {[%clk 0:00:02]}  Qf2 {[%clk 0:01:13]} 29. Rg1 {[%clk 0:00:06]}  Kg7 {[%clk 0:01:13]} 30. Qxf8+ {[%clk 0:00:06]}  Kxf8 {[%clk 0:01:14]}
31. b8=Q+ {[%clk 0:00:04]}  Kg7 {[%clk 0:01:13]} 32. Qxe5+ {[%clk 0:00:07]}  Kh6 {[%clk 0:01:16]} 33. Qg3 {[%clk 0:00:07]}  Qe3 {[%clk 0:01:14]}
34. Qh4+ {[%clk 0:00:06]}  Kg7 {[%clk 0:01:15]} 35. Rae1 {[%clk 0:00:07]}  Rxe1 {[%clk 0:01:11]} 36. Qxe1 {[%clk 0:00:07]}  Qa3 {[%clk 0:01:11]}
37. Qa1+ {[%clk 0:00:07]}  f6 {[%clk 0:01:13]} 38. Rd1 {[%clk 0:00:08]}  Qa4 {[%clk 0:01:14]} 39. h3 {[%clk 0:00:08]}  h5 {[%clk 0:01:14]}
40. Qd4 {[%clk 0:00:08]}  Qxa2 {[%clk 0:01:14]} 41. Qd7+ {[%clk 0:00:08]}  Kh6 {[%clk 0:01:15]} 42. Qd2+ {[%clk 0:00:09]} 1-0